[Event "Titled Tuesday Blitz May 23 Early 2023"]
[White "Hakobyan, Aram"]
[Black "Berezin, Viktor"]
[WhiteFideId "13306677"]
[BlackFideId "14107872"]
[WhiteElo "2584"]
[BlackElo "2310"]
[Result "1-0"]
[Round "03"]
[TimeControl "180+2"]
[Date "2023.05.23"]
[WhiteClock "0:00:58"]
[BlackClock "0:00:11"]

1. e4 {[%clk 0:03:00]}  g6 {[%clk 0:02:58]} 2. d4 {[%clk 0:03:00]}  Bg7 {[%clk 0:02:56]} 3. Nc3 {[%clk 0:03:01]}  d6 {[%clk 0:02:55]} 4. Nf3 {[%clk 0:03:00]}  Nf6 {[%clk 0:02:55]} 5. Be2 {[%clk 0:03:01]}  O-O {[%clk 0:02:55]} 6. O-O {[%clk 0:03:01]}  c6 {[%clk 0:02:54]} 7. a4 {[%clk 0:03:00]}  a5 {[%clk 0:02:53]} 8. h3 {[%clk 0:02:58]}  Nbd7 {[%clk 0:02:53]} 9. Be3 {[%clk 0:02:58]}  Qc7 {[%clk 0:02:50]} 10. Qd2 {[%clk 0:02:50]}  e5 {[%clk 0:02:49]} 11. Rad1 {[%clk 0:02:48]}  exd4 {[%clk 0:02:43]} 12. Bxd4 {[%clk 0:02:39]}  Re8 {[%clk 0:02:38]} 13. Bc4 {[%clk 0:02:38]}  Ne5 {[%clk 0:02:26]} 14. Bxe5 {[%clk 0:02:36]}  dxe5 {[%clk 0:02:25]} 15. Ng5 {[%clk 0:02:36]}  Rf8 {[%clk 0:02:21]} 16. Nxf7 {[%clk 0:02:24]}  Rxf7 {[%clk 0:02:08]} 17. Qd8+ {[%clk 0:02:25]}  Qxd8 {[%clk 0:02:00]} 18. Rxd8+ {[%clk 0:02:26]}  Bf8 {[%clk 0:01:59]} 19. f4 {[%clk 0:02:26]}  Be6 {[%clk 0:01:02]} 20. Bxe6 {[%clk 0:02:21]}  Rxd8 {[%clk 0:01:00]} 21. fxe5 {[%clk 0:02:21]}  Bc5+ {[%clk 0:00:45]} 22. Kh2 {[%clk 0:02:09]}  Kg7 {[%clk 0:00:33]} 23. Bxf7 {[%clk 0:02:07]}  Kxf7 {[%clk 0:00:33]} 24. exf6 {[%clk 0:01:12]}  Bd4 {[%clk 0:00:32]} 25. Rd1 {[%clk 0:01:03]}  Be5+ {[%clk 0:00:31]} 26. Kg1 {[%clk 0:01:01]}  Rxd1+ {[%clk 0:00:19]} 27. Nxd1 {[%clk 0:01:02]}  Kxf6 {[%clk 0:00:20]} 28. Kf2 {[%clk 0:01:02]}  Bd4+ {[%clk 0:00:19]} 29. Kf3 {[%clk 0:01:01]}  Ke5 {[%clk 0:00:20]} 30. c3 {[%clk 0:00:59]}  Bc5 {[%clk 0:00:20]} 31. Ne3 {[%clk 0:01:00]}  b5 {[%clk 0:00:19]} 32. b3 {[%clk 0:00:57]}  bxa4 {[%clk 0:00:18]} 33. Nc4+ {[%clk 0:00:57]}  Ke6 {[%clk 0:00:11]} 34. bxa4 {[%clk 0:00:58]} 1-0


[Site "https://www.chess.com"]

[Event "Titled Tuesday Blitz May 23 Early 2023"]
[White "Kozak, Adam"]
[Black "Yelisieiev, Yevhenii"]
[WhiteFideId "753246"]
[BlackFideId "14139642"]
[WhiteElo "2469"]
[BlackElo "2403"]
[Result "0-1"]
[Round "03"]
[TimeControl "180+2"]
[Date "2023.05.23"]
[WhiteClock "0:00:00"]
[BlackClock "0:00:12"]

1. d4 {[%clk 0:02:46]}  d6 {[%clk 0:02:59]} 2. c4 {[%clk 0:02:46]}  e5 {[%clk 0:02:59]} 3. h3 {[%clk 0:02:43]}  exd4 {[%clk 0:02:57]} 4. Qxd4 {[%clk 0:02:38]}  Nc6 {[%clk 0:02:57]} 5. Qd1 {[%clk 0:02:38]}  g6 {[%clk 0:02:57]} 6. Bd2 {[%clk 0:02:36]}  Bg7 {[%clk 0:02:56]} 7. Bc3 {[%clk 0:02:36]}  Nf6 {[%clk 0:02:52]} 8. Nf3 {[%clk 0:02:33]}  O-O {[%clk 0:02:52]} 9. e3 {[%clk 0:02:33]}  d5 {[%clk 0:02:25]} 10. Nbd2 {[%clk 0:02:28]}  Be6 {[%clk 0:02:15]} 11. Qc1 {[%clk 0:02:17]}  Ne4 {[%clk 0:01:59]} 12. Bxg7 {[%clk 0:02:16]}  Kxg7 {[%clk 0:01:59]} 13. cxd5 {[%clk 0:02:16]}  Bxd5 {[%clk 0:01:51]} 14. Nxe4 {[%clk 0:02:07]}  Bxe4 {[%clk 0:01:50]} 15. Qc3+ {[%clk 0:02:08]}  Qf6 {[%clk 0:01:48]} 16. Qxf6+ {[%clk 0:02:07]}  Kxf6 {[%clk 0:01:48]} 17. Rc1 {[%clk 0:02:05]}  Rfd8 {[%clk 0:01:30]} 18. a3 {[%clk 0:01:52]}  Rd7 {[%clk 0:01:29]} 19. Nd2 {[%clk 0:01:52]}  Bd5 {[%clk 0:01:18]} 20. f3 {[%clk 0:01:41]}  Rad8 {[%clk 0:00:57]} 21. Bb5 {[%clk 0:01:40]}  a6 {[%clk 0:00:57]} 22. Ba4 {[%clk 0:01:32]}  b5 {[%clk 0:00:54]} 23. Bb3 {[%clk 0:01:30]}  Bxb3 {[%clk 0:00:52]} 24. Rxc6+ {[%clk 0:01:21]}  Kg7 {[%clk 0:00:50]} 25. Nxb3 {[%clk 0:01:18]}  Rd1+ {[%clk 0:00:49]} 26. Ke2 {[%clk 0:01:14]}  Rxh1 {[%clk 0:00:48]} 27. Rxc7 {[%clk 0:01:14]}  Rg1 {[%clk 0:00:40]} 28. Kf2 {[%clk 0:01:12]}  Rb1 {[%clk 0:00:33]} 29. Rc2 {[%clk 0:01:12]}  h5 {[%clk 0:00:32]} 30. h4 {[%clk 0:01:10]}  Rd6 {[%clk 0:00:31]} 31. Nd4 {[%clk 0:01:08]}  Rh1 {[%clk 0:00:27]} 32. Kg3 {[%clk 0:01:08]}  Rd7 {[%clk 0:00:24]} 33. Rc6 {[%clk 0:01:04]}  Rb1 {[%clk 0:00:23]} 34. Rc2 {[%clk 0:01:04]}  Re7 {[%clk 0:00:23]} 35. Kf4 {[%clk 0:01:04]}  Rh1 {[%clk 0:00:22]} 36. g3 {[%clk 0:01:02]}  Re1 {[%clk 0:00:21]} 37. e4 {[%clk 0:00:58]}  Rd7 {[%clk 0:00:21]} 38. Nc6 {[%clk 0:00:55]}  Rd3 {[%clk 0:00:18]} 39. Nb4 {[%clk 0:00:55]}  Rb3 {[%clk 0:00:18]} 40. Nd5 {[%clk 0:00:52]}  Rf1 {[%clk 0:00:17]} 41. Nc3 {[%clk 0:00:52]}  a5 {[%clk 0:00:17]} 42. Ke5 {[%clk 0:00:19]}  b4 {[%clk 0:00:16]} 43. axb4 {[%clk 0:00:20]}  axb4 {[%clk 0:00:17]} 44. Ne2 {[%clk 0:00:21]}  Rbxf3 {[%clk 0:00:14]} 45. Rc7 {[%clk 0:00:14]}  R1f2 {[%clk 0:00:12]} 46. Nd4 {[%clk 0:00:14]}  Rxg3 {[%clk 0:00:13]} 47. b3 {[%clk 0:00:14]}  Rg4 {[%clk 0:00:12]} 48. Ne6+ {[%clk 0:00:13]}  Kh6 {[%clk 0:00:12]} 49. Ng5 {[%clk 0:00:13]}  Rxg5+ {[%clk 0:00:11]} 50. hxg5+ {[%clk 0:00:13]}  Kxg5 {[%clk 0:00:12]} 51. Rb7 {[%clk 0:00:12]}  h4 {[%clk 0:00:12]} 52. Rb8 {[%clk 0:00:12]}  h3 {[%clk 0:00:12]} 53. Rh8 {[%clk 0:00:12]}  h2 {[%clk 0:00:13]} 54. Kd4 {[%clk 0:00:12]}  Kg4 {[%clk 0:00:13]} 55. Rxh2 {[%clk 0:00:00]}  Rxh2 {[%clk 0:00:12]} 0-1


[Site "https://www.chess.com"]

[Event "Titled Tuesday Blitz May 23 Early 2023"]
[White "Timofeev, Artyom"]
[Black "Sliwicki, Damian"]
[WhiteFideId "4140419"]
[BlackFideId "1127128"]
[WhiteElo "2586"]
[BlackElo "2030"]
[Result "1-0"]
[Round "03"]
[TimeControl "180+2"]
[Date "2023.05.23"]
[WhiteClock "0:00:56"]
[BlackClock "0:00:04"]

1. c4 {[%clk 0:02:57]}  Nf6 {[%clk 0:02:52]} 2. Nc3 {[%clk 0:02:56]}  d5 {[%clk 0:02:42]} 3. cxd5 {[%clk 0:02:51]}  Nxd5 {[%clk 0:02:43]} 4. Nf3 {[%clk 0:02:48]}  g6 {[%clk 0:02:41]} 5. h4 {[%clk 0:02:48]}  Nc6 {[%clk 0:02:33]} 6. h5 {[%clk 0:02:48]}  Bg7 {[%clk 0:02:28]} 7. h6 {[%clk 0:02:46]}  Bf6 {[%clk 0:02:24]} 8. d4 {[%clk 0:02:40]}  Bf5 {[%clk 0:02:17]} 9. e3 {[%clk 0:02:33]}  Ndb4 {[%clk 0:01:34]} 10. e4 {[%clk 0:02:02]}  Bg4 {[%clk 0:01:10]} 11. Bb5 {[%clk 0:01:57]}  Bxf3 {[%clk 0:01:01]} 12. gxf3 {[%clk 0:01:57]}  Qxd4 {[%clk 0:00:59]} 13. Be3 {[%clk 0:01:41]}  Qe5 {[%clk 0:00:47]} 14. f4 {[%clk 0:01:36]}  Qe6 {[%clk 0:00:42]} 15. e5 {[%clk 0:01:35]}  Rd8 {[%clk 0:00:32]} 16. Qe2 {[%clk 0:01:34]}  a5 {[%clk 0:00:28]} 17. exf6 {[%clk 0:01:23]}  O-O {[%clk 0:00:25]} 18. fxe7 {[%clk 0:01:04]}  Qxe7 {[%clk 0:00:11]} 19. Bxc6 {[%clk 0:01:02]}  Nd3+ {[%clk 0:00:10]} 20. Kf1 {[%clk 0:01:02]}  bxc6 {[%clk 0:00:11]} 21. Rd1 {[%clk 0:01:00]}  Nb4 {[%clk 0:00:08]} 22. Kg2 {[%clk 0:00:59]}  Qe6 {[%clk 0:00:06]} 23. a3 {[%clk 0:00:57]}  Nd5 {[%clk 0:00:06]} 24. Nxd5 {[%clk 0:00:57]}  cxd5 {[%clk 0:00:06]} 25. Qf3 {[%clk 0:00:56]}  c5 {[%clk 0:00:05]} 26. Bxc5 {[%clk 0:00:56]}  Rc8 {[%clk 0:00:04]} 27. Bxf8 {[%clk 0:00:56]} 1-0


[Site "https://www.chess.com"]

[Event "Titled Tuesday Blitz May 23 Early 2023"]
[White "Mostbauer, Florian"]
[Black "Gharibyan, Mamikon"]
[WhiteFideId "1626671"]
[BlackFideId "13308300"]
[WhiteElo "2234"]
[BlackElo "2445"]
[Result "0-1"]
[Round "03"]
[TimeControl "180+2"]
[Date "2023.05.23"]
[WhiteClock "0:00:19"]
[BlackClock "0:01:07"]

1. c4 {[%clk 0:03:00]}  g6 {[%clk 0:02:59]} 2. g3 {[%clk 0:03:01]}  Bg7 {[%clk 0:02:58]} 3. Bg2 {[%clk 0:03:01]}  Nf6 {[%clk 0:02:57]} 4. Nc3 {[%clk 0:03:01]}  O-O {[%clk 0:02:56]} 5. e3 {[%clk 0:03:01]}  c6 {[%clk 0:02:55]} 6. Nge2 {[%clk 0:03:00]}  d5 {[%clk 0:02:53]} 7. cxd5 {[%clk 0:02:54]}  cxd5 {[%clk 0:02:54]} 8. d4 {[%clk 0:02:55]}  Nc6 {[%clk 0:02:49]} 9. O-O {[%clk 0:02:55]}  e6 {[%clk 0:02:35]} 10. b3 {[%clk 0:02:52]}  Re8 {[%clk 0:02:34]} 11. Ba3 {[%clk 0:02:47]}  Qa5 {[%clk 0:02:32]} 12. Bb2 {[%clk 0:02:47]}  h5 {[%clk 0:02:17]} 13. h4 {[%clk 0:02:43]}  e5 {[%clk 0:02:12]} 14. dxe5 {[%clk 0:02:43]}  Nxe5 {[%clk 0:02:13]} 15. Nxd5 {[%clk 0:02:38]}  Bg4 {[%clk 0:01:58]} 16. Bc3 {[%clk 0:02:17]}  Qb5 {[%clk 0:01:38]} 17. Nxf6+ {[%clk 0:01:29]}  Bxf6 {[%clk 0:01:37]} 18. f3 {[%clk 0:01:30]}  Rad8 {[%clk 0:01:22]} 19. Nd4 {[%clk 0:01:27]}  Qc5 {[%clk 0:01:21]} 20. Qd2 {[%clk 0:01:10]}  Bc8 {[%clk 0:01:15]} 21. Rac1 {[%clk 0:01:05]}  Qa3 {[%clk 0:01:09]} 22. Qb2 {[%clk 0:00:46]}  Qxb2 {[%clk 0:01:07]} 23. Bxb2 {[%clk 0:00:46]}  Nd3 {[%clk 0:01:08]} 24. Rc2 {[%clk 0:00:27]}  Nxb2 {[%clk 0:01:08]} 25. Rxb2 {[%clk 0:00:19]}  Rxe3 {[%clk 0:01:07]} 0-1


[Site "https://www.chess.com"]

[Event "Titled Tuesday Blitz May 23 Early 2023"]
[White "Rostovtsev, Dmitry"]
[Black "Estrada Nieto, Julian"]
[WhiteFideId "34278320"]
[BlackFideId "5101018"]
[WhiteElo "2344"]
[BlackElo "2161"]
[Result "1-0"]
[Round "03"]
[TimeControl "180+2"]
[Date "2023.05.23"]
[WhiteClock "0:00:18"]
[BlackClock "0:00:00"]

1. e4 {[%clk 0:03:00]}  e5 {[%clk 0:02:59]} 2. Nf3 {[%clk 0:03:00]}  Nc6 {[%clk 0:02:59]} 3. Bb5 {[%clk 0:03:01]}  a6 {[%clk 0:02:59]} 4. Ba4 {[%clk 0:03:01]}  Nf6 {[%clk 0:03:00]} 5. O-O {[%clk 0:03:01]}  Be7 {[%clk 0:03:01]} 6. d3 {[%clk 0:03:01]}  b5 {[%clk 0:03:01]} 7. Bb3 {[%clk 0:03:01]}  d6 {[%clk 0:03:02]} 8. a3 {[%clk 0:03:02]}  O-O {[%clk 0:02:54]} 9. Nc3 {[%clk 0:03:01]}  Na5 {[%clk 0:02:53]} 10. Ba2 {[%clk 0:03:01]}  c5 {[%clk 0:02:53]} 11. Bg5 {[%clk 0:03:01]}  Be6 {[%clk 0:02:52]} 12. Bxf6 {[%clk 0:03:02]}  Bxf6 {[%clk 0:02:52]} 13. Nd5 {[%clk 0:03:02]}  Nc6 {[%clk 0:02:49]} 14. c3 {[%clk 0:03:02]}  g6 {[%clk 0:02:47]} 15. a4 {[%clk 0:03:01]}  Bg7 {[%clk 0:02:42]} 16. Qd2 {[%clk 0:02:53]}  Rb8 {[%clk 0:02:28]} 17. Ng5 {[%clk 0:02:47]}  Bd7 {[%clk 0:02:20]} 18. f4 {[%clk 0:02:43]}  b4 {[%clk 0:01:51]} 19. Bc4 {[%clk 0:02:37]}  Na5 {[%clk 0:01:48]} 20. fxe5 {[%clk 0:02:28]}  Nxc4 {[%clk 0:01:47]} 21. dxc4 {[%clk 0:02:28]}  Bxe5 {[%clk 0:01:45]} 22. Nf3 {[%clk 0:02:26]}  bxc3 {[%clk 0:01:41]} 23. bxc3 {[%clk 0:02:25]}  Bg7 {[%clk 0:01:40]} 24. Qd3 {[%clk 0:01:51]}  Rb2 {[%clk 0:01:33]} 25. a5 {[%clk 0:01:50]}  Re8 {[%clk 0:01:30]} 26. Rfe1 {[%clk 0:01:42]}  Bc6 {[%clk 0:01:29]} 27. Nd2 {[%clk 0:01:35]}  Qg5 {[%clk 0:01:23]} 28. Re2 {[%clk 0:01:27]}  Qh5 {[%clk 0:01:07]} 29. Rae1 {[%clk 0:01:19]}  Be5 {[%clk 0:01:04]} 30. Nf3 {[%clk 0:01:18]}  Rxe2 {[%clk 0:00:57]} 31. Rxe2 {[%clk 0:01:19]}  Rb8 {[%clk 0:00:50]} 32. Ne7+ {[%clk 0:01:04]}  Kg7 {[%clk 0:00:39]} 33. Nxc6 {[%clk 0:01:05]}  Rb3 {[%clk 0:00:33]} 34. Ncxe5 {[%clk 0:01:04]}  dxe5 {[%clk 0:00:34]} 35. Qd5 {[%clk 0:01:01]}  Rxc3 {[%clk 0:00:32]} 36. Qxe5+ {[%clk 0:01:00]}  Qxe5 {[%clk 0:00:32]} 37. Nxe5 {[%clk 0:01:01]}  f6 {[%clk 0:00:32]} 38. Nd7 {[%clk 0:00:45]}  Rxc4 {[%clk 0:00:31]} 39. e5 {[%clk 0:00:45]}  fxe5 {[%clk 0:00:30]} 40. Rxe5 {[%clk 0:00:46]}  Rc1+ {[%clk 0:00:27]} 41. Kf2 {[%clk 0:00:46]}  c4 {[%clk 0:00:28]} 42. Nc5 {[%clk 0:00:44]}  c3 {[%clk 0:00:22]} 43. Nxa6 {[%clk 0:00:44]}  Ra1 {[%clk 0:00:20]} 44. Nb4 {[%clk 0:00:42]}  Ra4 {[%clk 0:00:17]} 45. Rb5 {[%clk 0:00:40]}  Ra1 {[%clk 0:00:11]} 46. Ke3 {[%clk 0:00:24]}  Rb1 {[%clk 0:00:05]} 47. Kd3 {[%clk 0:00:24]}  Rb3 {[%clk 0:00:03]} 48. a6 {[%clk 0:00:23]}  Ra3 {[%clk 0:00:03]} 49. Rb7+ {[%clk 0:00:22]}  Kf6 {[%clk 0:00:04]} 50. a7 {[%clk 0:00:22]}  h5 {[%clk 0:00:03]} 51. Rb6+ {[%clk 0:00:18]}  Ke5 {[%clk 0:00:03]} 52. Ra6 {[%clk 0:00:19]}  Rb3 {[%clk 0:00:01]} 53. a8=Q {[%clk 0:00:19]}  Rxb4 {[%clk 0:00:02]} 54. Ra5+ {[%clk 0:00:18]}  Kf6 {[%clk 0:00:01]} 55. Qc6+ {[%clk 0:00:17]}  Kg7 {[%clk 0:00:00]} 56. Qxc3+ {[%clk 0:00:18]} 1-0


[Site "https://www.chess.com"]

[Event "Titled Tuesday Blitz May 23 Early 2023"]
[White "Tanmay Jain"]
[Black "Sattarov, Bobir"]
[WhiteFideId "45015481"]
[BlackFideId "14203081"]
[WhiteElo "2032"]
[BlackElo "2351"]
[Result "0-1"]
[Round "03"]
[TimeControl "180+2"]
[Date "2023.05.23"]
[WhiteClock "0:00:00"]
[BlackClock "0:01:20"]

1. e4 {[%clk 0:03:00]}  c5 {[%clk 0:02:58]} 2. Nf3 {[%clk 0:03:00]}  g6 {[%clk 0:02:57]} 3. g3 {[%clk 0:03:00]}  Bg7 {[%clk 0:02:57]} 4. Bg2 {[%clk 0:03:00]}  Nc6 {[%clk 0:02:58]} 5. O-O {[%clk 0:03:00]}  e6 {[%clk 0:02:59]} 6. c3 {[%clk 0:02:57]}  d5 {[%clk 0:02:44]} 7. exd5 {[%clk 0:02:48]}  Qxd5 {[%clk 0:02:44]} 8. d4 {[%clk 0:02:45]}  cxd4 {[%clk 0:02:41]} 9. Nxd4 {[%clk 0:02:40]}  Qc5 {[%clk 0:02:26]} 10. Nxc6 {[%clk 0:01:56]}  bxc6 {[%clk 0:02:27]} 11. Be3 {[%clk 0:01:56]}  Qb5 {[%clk 0:02:23]} 12. Na3 {[%clk 0:01:50]}  Qa6 {[%clk 0:02:23]} 13. Qd6 {[%clk 0:01:41]}  Ne7 {[%clk 0:02:14]} 14. Rad1 {[%clk 0:00:45]}  Nd5 {[%clk 0:01:52]} 15. c4 {[%clk 0:00:29]}  Bf8 {[%clk 0:01:51]} 16. Qe5 {[%clk 0:00:27]}  f6 {[%clk 0:01:51]} 17. Qd4 {[%clk 0:00:23]}  e5 {[%clk 0:01:51]} 18. Qd2 {[%clk 0:00:20]}  Nxe3 {[%clk 0:01:49]} 19. Qd8+ {[%clk 0:00:19]}  Kf7 {[%clk 0:01:49]} 20. fxe3 {[%clk 0:00:16]}  f5 {[%clk 0:01:33]} 21. Rd2 {[%clk 0:00:05]}  Qb6 {[%clk 0:01:29]} 22. Rd7+ {[%clk 0:00:03]}  Bxd7 {[%clk 0:01:27]} 23. Qxd7+ {[%clk 0:00:03]}  Be7 {[%clk 0:01:26]} 24. Bxc6 {[%clk 0:00:03]}  Rhd8 {[%clk 0:01:24]} 25. Bd5+ {[%clk 0:00:02]}  Kf6 {[%clk 0:01:24]} 26. Qa4 {[%clk 0:00:02]}  Qxe3+ {[%clk 0:01:24]} 27. Kh1 {[%clk 0:00:02]}  Rab8 {[%clk 0:01:23]} 28. Qc6+ {[%clk 0:00:02]}  Rd6 {[%clk 0:01:20]} 29. Qc7 {[%clk 0:00:02]}  Rxb2 {[%clk 0:01:19]} 30. Nb5 {[%clk 0:00:00]}  Rxd5 {[%clk 0:01:20]} 0-1


[Site "https://www.chess.com"]

[Event "Titled Tuesday Blitz May 23 Early 2023"]
[White "Rengifo Blancas, Renzo Jhonathan"]
[Black "Boyer, Mahel"]
[WhiteFideId "3807185"]
[BlackFideId "45102422"]
[WhiteElo "2085"]
[BlackElo "2439"]
[Result "1-0"]
[Round "03"]
[TimeControl "180+2"]
[Date "2023.05.23"]
[WhiteClock "0:00:11"]
[BlackClock "0:00:10"]

1. e4 {[%clk 0:03:00]}  c5 {[%clk 0:02:55]} 2. c3 {[%clk 0:03:00]}  e6 {[%clk 0:02:47]} 3. d4 {[%clk 0:03:00]}  d5 {[%clk 0:02:48]} 4. e5 {[%clk 0:03:01]}  Nc6 {[%clk 0:02:48]} 5. Nf3 {[%clk 0:03:01]}  Nh6 {[%clk 0:02:49]} 6. a3 {[%clk 0:03:02]}  Nf5 {[%clk 0:02:44]} 7. b4 {[%clk 0:03:01]}  cxd4 {[%clk 0:02:44]} 8. cxd4 {[%clk 0:03:01]}  Bd7 {[%clk 0:02:44]} 9. Bb2 {[%clk 0:03:01]}  b5 {[%clk 0:02:45]} 10. Bxb5 {[%clk 0:02:48]}  Nxe5 {[%clk 0:02:42]} 11. Bxd7+ {[%clk 0:02:45]}  Nxd7 {[%clk 0:02:43]} 12. O-O {[%clk 0:02:45]}  Bd6 {[%clk 0:02:16]} 13. Ne5 {[%clk 0:02:43]}  O-O {[%clk 0:02:16]} 14. Nd2 {[%clk 0:02:38]}  Rc8 {[%clk 0:02:04]} 15. Nb3 {[%clk 0:02:18]}  Nb6 {[%clk 0:02:00]} 16. Nc5 {[%clk 0:02:17]}  Re8 {[%clk 0:01:49]} 17. Re1 {[%clk 0:02:17]}  Qh4 {[%clk 0:01:33]} 18. Rc1 {[%clk 0:01:57]}  Bxe5 {[%clk 0:01:16]} 19. dxe5 {[%clk 0:01:57]}  Nc4 {[%clk 0:01:17]} 20. Qb3 {[%clk 0:01:47]}  h5 {[%clk 0:00:58]} 21. Rc3 {[%clk 0:01:40]}  Nd4 {[%clk 0:00:45]} 22. Qa2 {[%clk 0:01:35]}  Nf5 {[%clk 0:00:35]} 23. Rh3 {[%clk 0:01:32]}  Qg4 {[%clk 0:00:35]} 24. Qb3 {[%clk 0:01:26]}  a5 {[%clk 0:00:31]} 25. Bc3 {[%clk 0:01:20]}  axb4 {[%clk 0:00:27]} 26. axb4 {[%clk 0:01:20]}  Ra8 {[%clk 0:00:24]} 27. Qd1 {[%clk 0:01:10]}  Rec8 {[%clk 0:00:13]} 28. Rxh5 {[%clk 0:01:00]}  Qxd1 {[%clk 0:00:11]} 29. Rxd1 {[%clk 0:01:01]}  d4 {[%clk 0:00:12]} 30. Be1 {[%clk 0:00:53]}  Nxe5 {[%clk 0:00:12]} 31. Rh3 {[%clk 0:00:37]}  Ra2 {[%clk 0:00:10]} 32. Rb3 {[%clk 0:00:32]}  g5 {[%clk 0:00:08]} 33. Bd2 {[%clk 0:00:26]}  g4 {[%clk 0:00:07]} 34. Bf4 {[%clk 0:00:26]}  Ng6 {[%clk 0:00:04]} 35. Bg3 {[%clk 0:00:26]}  e5 {[%clk 0:00:03]} 36. Ne4 {[%clk 0:00:24]}  Kg7 {[%clk 0:00:02]} 37. b5 {[%clk 0:00:24]}  f6 {[%clk 0:00:02]} 38. b6 {[%clk 0:00:24]}  Rb8 {[%clk 0:00:02]} 39. b7 {[%clk 0:00:22]}  Ra7 {[%clk 0:00:02]} 40. Rdb1 {[%clk 0:00:23]}  Nge7 {[%clk 0:00:03]} 41. Nc5 {[%clk 0:00:22]}  Nd6 {[%clk 0:00:03]} 42. f4 {[%clk 0:00:19]}  Nc6 {[%clk 0:00:03]} 43. fxe5 {[%clk 0:00:18]}  fxe5 {[%clk 0:00:04]} 44. Rb6 {[%clk 0:00:16]}  Na5 {[%clk 0:00:03]} 45. Rxd6 {[%clk 0:00:15]}  Nc4 {[%clk 0:00:04]} 46. Rc6 {[%clk 0:00:12]}  Kf7 {[%clk 0:00:03]} 47. Rc8 {[%clk 0:00:11]}  Raxb7 {[%clk 0:00:04]} 48. Rxb7+ {[%clk 0:00:11]}  Rxb7 {[%clk 0:00:03]} 49. Nxb7 {[%clk 0:00:12]}  Ke6 {[%clk 0:00:04]} 50. Rxc4 {[%clk 0:00:12]}  Kd5 {[%clk 0:00:05]} 51. Rc1 {[%clk 0:00:12]}  e4 {[%clk 0:00:06]} 52. Kf2 {[%clk 0:00:13]}  e3+ {[%clk 0:00:06]} 53. Ke2 {[%clk 0:00:13]}  Ke4 {[%clk 0:00:07]} 54. Nc5+ {[%clk 0:00:13]}  Kd5 {[%clk 0:00:08]} 55. Nd3 {[%clk 0:00:14]}  Ke4 {[%clk 0:00:09]} 56. Nb2 {[%clk 0:00:10]}  Kd5 {[%clk 0:00:09]} 57. Kd3 {[%clk 0:00:10]}  e2 {[%clk 0:00:08]} 58. Kxe2 {[%clk 0:00:10]}  Ke4 {[%clk 0:00:09]} 59. Rd1 {[%clk 0:00:10]}  d3+ {[%clk 0:00:10]} 60. Nxd3 {[%clk 0:00:10]}  Kf5 {[%clk 0:00:10]} 61. Ke3 {[%clk 0:00:10]}  Kg5 {[%clk 0:00:10]} 62. Ke4 {[%clk 0:00:11]}  Kh5 {[%clk 0:00:10]} 63. Ra1 {[%clk 0:00:11]} 1-0


[Site "https://www.chess.com"]

[Event "Titled Tuesday Blitz May 23 Early 2023"]
[White "Yurasova, Daria"]
[Black "Smirnov, Pavel"]
[WhiteFideId "34146919"]
[BlackFideId "4123425"]
[WhiteElo "2109"]
[BlackElo "2520"]
[Result "1-0"]
[Round "03"]
[TimeControl "180+2"]
[Date "2023.05.23"]
[WhiteClock "0:00:05"]
[BlackClock "0:00:00"]

1. d4 {[%clk 0:02:53]}  Nf6 {[%clk 0:02:24]} 2. Bg5 {[%clk 0:02:52]}  d5 {[%clk 0:02:23]} 3. Bxf6 {[%clk 0:02:52]}  exf6 {[%clk 0:02:22]} 4. e3 {[%clk 0:02:53]}  Bd6 {[%clk 0:02:22]} 5. g3 {[%clk 0:02:53]}  O-O {[%clk 0:02:22]} 6. Bg2 {[%clk 0:02:54]}  c6 {[%clk 0:02:22]} 7. Ne2 {[%clk 0:02:55]}  f5 {[%clk 0:02:23]} 8. Nd2 {[%clk 0:02:55]}  Be6 {[%clk 0:02:23]} 9. O-O {[%clk 0:02:56]}  Nd7 {[%clk 0:02:23]} 10. Rc1 {[%clk 0:02:56]}  Nf6 {[%clk 0:02:18]} 11. c4 {[%clk 0:02:56]}  Qe7 {[%clk 0:02:17]} 12. a3 {[%clk 0:02:50]}  g6 {[%clk 0:02:13]} 13. Qb3 {[%clk 0:02:37]}  dxc4 {[%clk 0:02:11]} 14. Qc2 {[%clk 0:02:31]}  b5 {[%clk 0:02:08]} 15. Bxc6 {[%clk 0:02:31]}  Rab8 {[%clk 0:02:08]} 16. Nc3 {[%clk 0:02:25]}  a6 {[%clk 0:02:07]} 17. Bg2 {[%clk 0:02:25]}  a5 {[%clk 0:02:00]} 18. Ne2 {[%clk 0:02:23]}  Rfc8 {[%clk 0:01:59]} 19. Nf3 {[%clk 0:02:16]}  c3 {[%clk 0:01:53]} 20. bxc3 {[%clk 0:01:46]}  Bxa3 {[%clk 0:01:52]} 21. Rb1 {[%clk 0:01:44]}  b4 {[%clk 0:01:53]} 22. Ne5 {[%clk 0:01:33]}  b3 {[%clk 0:01:38]} 23. Qd1 {[%clk 0:01:33]}  Rb6 {[%clk 0:01:32]} 24. c4 {[%clk 0:01:14]}  Rxc4 {[%clk 0:01:31]} 25. Rxb3 {[%clk 0:00:35]}  Rxb3 {[%clk 0:01:25]} 26. Qxb3 {[%clk 0:00:36]}  Rc8 {[%clk 0:01:11]} 27. Qb5 {[%clk 0:00:28]}  Qb4 {[%clk 0:01:10]} 28. Qa6 {[%clk 0:00:24]}  Bb2 {[%clk 0:00:58]} 29. Nf4 {[%clk 0:00:24]}  Re8 {[%clk 0:00:50]} 30. Rb1 {[%clk 0:00:19]}  Qc3 {[%clk 0:00:39]} 31. Nxe6 {[%clk 0:00:11]}  Rxe6 {[%clk 0:00:37]} 32. Qa8+ {[%clk 0:00:11]}  Kg7 {[%clk 0:00:13]} 33. Qb7 {[%clk 0:00:12]}  Qc2 {[%clk 0:00:08]} 34. Qxf7+ {[%clk 0:00:11]}  Kh6 {[%clk 0:00:08]} 35. Rxb2 {[%clk 0:00:10]}  Qc1+ {[%clk 0:00:06]} 36. Bf1 {[%clk 0:00:10]}  Qxb2 {[%clk 0:00:06]} 37. Qxe6 {[%clk 0:00:10]}  Ne4 {[%clk 0:00:06]} 38. Ng4+ {[%clk 0:00:08]}  Kh5 {[%clk 0:00:02]} 39. Nf6+ {[%clk 0:00:08]}  Nxf6 {[%clk 0:00:02]} 40. Qxf6 {[%clk 0:00:09]}  a4 {[%clk 0:00:02]} 41. h4 {[%clk 0:00:09]}  Kh6 {[%clk 0:00:02]} 42. g4 {[%clk 0:00:05]}  fxg4 {[%clk 0:00:01]} 43. Qg5+ {[%clk 0:00:05]}  Kg7 {[%clk 0:00:00]} 44. Qe5+ {[%clk 0:00:05]} 1-0


[Site "https://www.chess.com"]

[Event "Titled Tuesday Blitz May 23 Early 2023"]
[White "Ordekalog"]
[Black "Schmakel, Sam"]
[BlackFideId "2039311"]
[WhiteElo "2496"]
[BlackElo "2356"]
[Result "0-1"]
[Round "03"]
[TimeControl "180+2"]
[Date "2023.05.23"]
[WhiteClock "0:00:35"]
[BlackClock "0:01:08"]

1. e4 {[%clk 0:03:00]}  g6 {[%clk 0:02:57]} 2. d3 {[%clk 0:03:00]}  Bg7 {[%clk 0:02:57]} 3. g3 {[%clk 0:02:59]}  c5 {[%clk 0:02:56]} 4. Bg2 {[%clk 0:02:58]}  Nc6 {[%clk 0:02:56]} 5. f4 {[%clk 0:02:58]}  e6 {[%clk 0:02:54]} 6. Nf3 {[%clk 0:02:57]}  Nge7 {[%clk 0:02:54]} 7. c3 {[%clk 0:02:55]}  d5 {[%clk 0:02:46]} 8. O-O {[%clk 0:02:53]}  O-O {[%clk 0:02:44]} 9. e5 {[%clk 0:02:50]}  d4 {[%clk 0:02:30]} 10. c4 {[%clk 0:02:48]}  a6 {[%clk 0:02:26]} 11. a4 {[%clk 0:02:47]}  Nb4 {[%clk 0:02:20]} 12. Qe2 {[%clk 0:02:39]}  Bd7 {[%clk 0:02:17]} 13. g4 {[%clk 0:02:34]}  b5 {[%clk 0:02:11]} 14. axb5 {[%clk 0:01:50]}  axb5 {[%clk 0:02:12]} 15. Rxa8 {[%clk 0:01:50]}  Qxa8 {[%clk 0:02:13]} 16. Na3 {[%clk 0:01:49]}  bxc4 {[%clk 0:02:09]} 17. Nxc4 {[%clk 0:01:48]}  Qa2 {[%clk 0:02:04]} 18. Ng5 {[%clk 0:01:38]}  Bb5 {[%clk 0:01:44]} 19. f5 {[%clk 0:01:21]}  exf5 {[%clk 0:01:36]} 20. gxf5 {[%clk 0:01:18]}  Nxf5 {[%clk 0:01:36]} 21. Rxf5 {[%clk 0:01:17]}  gxf5 {[%clk 0:01:37]} 22. e6 {[%clk 0:01:07]}  Qb1 {[%clk 0:01:31]} 23. Qh5 {[%clk 0:00:45]}  Qxc1+ {[%clk 0:01:23]} 24. Bf1 {[%clk 0:00:45]}  h6 {[%clk 0:01:22]} 25. exf7+ {[%clk 0:00:44]}  Kh8 {[%clk 0:01:22]} 26. Ne6 {[%clk 0:00:43]}  Bxc4 {[%clk 0:01:09]} 27. dxc4 {[%clk 0:00:35]}  Qe3+ {[%clk 0:01:08]} 0-1


[Site "https://www.chess.com"]